[Event "*** Titled Tuesday Blitz"]
[Site "Chess.com"]
[Date "2020.11.03"]
[Round "8"]
[White "Chopper1905"]
[Black "Baby_Legs"]
[Result "1-0"]
[WhiteElo "2930"]
[BlackElo "2723"]
[TimeControl "180+1"]
[EndTime "11:33:19 PST"]
[Termination "Chopper1905 won by resignation"]

1. d4 {[%clk 0:03:00.9]} 1... Nf6 {[%clk 0:02:59.7]} 2. Bf4 {[%clk 0:02:59.8]}
2... g6 {[%clk 0:02:57.1]} 3. e3 {[%clk 0:02:58.8]} 3... Bg7 {[%clk 0:02:57]} 4.
Nf3 {[%clk 0:02:50.5]} 4... O-O {[%clk 0:02:56.7]} 5. h3 {[%clk 0:02:47.1]} 5...
d6 {[%clk 0:02:56.9]} 6. Nbd2 {[%clk 0:02:47.2]} 6... b6 {[%clk 0:02:56.5]} 7.
Bc4 {[%clk 0:02:45.3]} 7... Bb7 {[%clk 0:02:54]} 8. O-O {[%clk 0:02:45.6]} 8...
Nbd7 {[%clk 0:02:53.6]} 9. Re1 {[%clk 0:02:41.1]} 9... e6 {[%clk 0:02:47.7]} 10.
a4 {[%clk 0:02:40]} 10... a6 {[%clk 0:02:47.5]} 11. e4 {[%clk 0:02:38.2]} 11...
Qe7 {[%clk 0:02:44.5]} 12. c3 {[%clk 0:02:33.9]} 12... h6 {[%clk 0:02:44.3]} 13.
Bh2 {[%clk 0:02:33.1]} 13... e5 {[%clk 0:02:42.6]} 14. Qb3 {[%clk 0:02:31.4]}
14... Kh7 {[%clk 0:02:39.3]} 15. Rad1 {[%clk 0:02:31.4]} 15... Nh5 {[%clk
0:02:20.3]} 16. Bd5 {[%clk 0:02:18]} 16... c6 {[%clk 0:02:16.5]} 17. Bc4 {[%clk
0:02:16.9]} 17... b5 {[%clk 0:02:16.7]} 18. Bf1 {[%clk 0:02:13.8]} 18... Nb6
{[%clk 0:02:09.1]} 19. a5 {[%clk 0:02:13.9]} 19... Nd7 {[%clk 0:02:06.6]} 20.
Qa3 {[%clk 0:02:14.1]} 20... Rfe8 {[%clk 0:01:59.3]} 21. c4 {[%clk 0:01:43.8]}
21... Nf4 {[%clk 0:01:41.1]} 22. d5 {[%clk 0:01:25]} 22... Nc5 {[%clk
0:01:05.8]} 23. b4 {[%clk 0:01:19.8]} 23... Nd7 {[%clk 0:01:05.9]} 24. dxc6
{[%clk 0:01:13]} 24... Bxc6 {[%clk 0:01:06.8]} 25. cxb5 {[%clk 0:01:11.9]} 25...
axb5 {[%clk 0:01:07.7]} 26. Rc1 {[%clk 0:01:05.1]} 26... Rec8 {[%clk 0:01:07.5]}
27. Rc3 {[%clk 0:00:37.8]} 27... Nf8 {[%clk 0:01:04.4]} 28. Rec1 {[%clk
0:00:37.7]} 28... Qb7 {[%clk 0:01:04.2]} 29. Qa2 {[%clk 0:00:32]} 29... N8e6
{[%clk 0:01:01]} 30. Qc2 {[%clk 0:00:31.1]} 30... Bd7 {[%clk 0:01:01]} 31. Rxc8
{[%clk 0:00:28.6]} 31... Rxc8 {[%clk 0:00:59.7]} 32. Qd1 {[%clk 0:00:29.5]}
32... Ra8 {[%clk 0:00:56.9]} 33. Qc2 {[%clk 0:00:24.7]} 33... Rc8 {[%clk
0:00:56.1]} 34. Qb1 {[%clk 0:00:25]} 34... Ra8 {[%clk 0:00:49.3]} 35. h4 {[%clk
0:00:24.3]} 35... g5 {[%clk 0:00:45.2]} 36. hxg5 {[%clk 0:00:23.9]} 36... hxg5
{[%clk 0:00:46.1]} 37. g3 {[%clk 0:00:24.5]} 37... Ng6 {[%clk 0:00:44.9]} 38.
Ne1 {[%clk 0:00:23.4]} 38... Nd4 {[%clk 0:00:42.9]} 39. Nb3 {[%clk 0:00:20.9]}
39... g4 {[%clk 0:00:39]} 40. Nxd4 {[%clk 0:00:20.5]} 40... exd4 {[%clk
0:00:39.9]} 41. Nd3 {[%clk 0:00:21.2]} 41... Ne5 {[%clk 0:00:39.7]} 42. Nxe5
{[%clk 0:00:20.5]} 42... Bxe5 {[%clk 0:00:40.6]} 43. Bd3 {[%clk 0:00:19.6]}
43... Kg7 {[%clk 0:00:39.4]} 44. Qb3 {[%clk 0:00:19.7]} 44... Be6 {[%clk
0:00:39.4]} 45. Qd1 {[%clk 0:00:19.7]} 45... Qe7 {[%clk 0:00:34.6]} 46. Bxb5
{[%clk 0:00:18.4]} 46... Qg5 {[%clk 0:00:34.4]} 47. Bc4 {[%clk 0:00:15.7]} 47...
Bxc4 {[%clk 0:00:33.2]} 48. Rxc4 {[%clk 0:00:16.6]} 48... Rh8 {[%clk 0:00:33.6]}
49. Rc2 {[%clk 0:00:15.3]} 49... Qh5 {[%clk 0:00:30.3]} 50. f4 {[%clk
0:00:15.7]} 50... gxf3 {[%clk 0:00:30.7]} 51. Rf2 {[%clk 0:00:16.2]} 51... Bxg3
{[%clk 0:00:30.5]} 52. Qxf3 {[%clk 0:00:14.6]} 52... Bxf2+ {[%clk 0:00:28.1]}
53. Qxf2 {[%clk 0:00:14.4]} 53... Qd1+ {[%clk 0:00:27.1]} 54. Kg2 {[%clk
0:00:14.8]} 54... Qg4+ {[%clk 0:00:26.6]} 55. Qg3 {[%clk 0:00:14.6]} 55... Qxg3+
{[%clk 0:00:26.2]} 56. Bxg3 {[%clk 0:00:15.5]} 56... Rb8 {[%clk 0:00:26.2]} 57.
Be1 {[%clk 0:00:15.4]} 57... Kf6 {[%clk 0:00:24.7]} 58. Kf3 {[%clk 0:00:15]}
58... Ke6 {[%clk 0:00:23.7]} 59. Ke2 {[%clk 0:00:15]} 59... d5 {[%clk 0:00:24]}
60. Kd3 {[%clk 0:00:15.6]} 60... dxe4+ {[%clk 0:00:24]} 61. Kxe4 {[%clk
0:00:16.2]} 61... Kd6 {[%clk 0:00:24]} 62. Bg3+ {[%clk 0:00:16.1]} 62... Kc6
{[%clk 0:00:23.7]} 63. Bxb8 {[%clk 0:00:17]} 63... Kb5 {[%clk 0:00:23.4]} 64.
Kxd4 {[%clk 0:00:17.3]} 64... Kxb4 {[%clk 0:00:23.8]} 65. a6 {[%clk 0:00:17.5]}
65... Kb5 {[%clk 0:00:23.4]} 66. a7 {[%clk 0:00:18.4]} 66... Kb6 {[%clk
0:00:23.8]} 67. a8=Q {[%clk 0:00:19.3]} 1-0

[Event "*** Titled Tuesday Blitz"]
[Site "Chess.com"]
[Date "2020.11.03"]
[Round "8"]
[White "ftorodent"]
[Black "Anton_Demchenko"]
[Result "0-1"]
[WhiteElo "2667"]
[BlackElo "2843"]
[TimeControl "180+1"]
[EndTime "11:33:20 PST"]
[Termination "Anton_Demchenko won on time"]

1. d4 {[%clk 0:03:00.9]} 1... Nf6 {[%clk 0:02:58.2]} 2. c4 {[%clk 0:03:00.6]}
2... g6 {[%clk 0:02:58.3]} 3. Nc3 {[%clk 0:02:59.8]} 3... Bg7 {[%clk 0:02:58.9]}
4. e4 {[%clk 0:02:59.2]} 4... O-O {[%clk 0:02:59]} 5. Nf3 {[%clk 0:02:59.7]}
5... d6 {[%clk 0:02:59.5]} 6. Be2 {[%clk 0:03:00]} 6... Nbd7 {[%clk 0:02:56.8]}
7. O-O {[%clk 0:02:58.2]} 7... e5 {[%clk 0:02:57.4]} 8. Re1 {[%clk 0:02:57.9]}
8... Re8 {[%clk 0:02:53]} 9. Bf1 {[%clk 0:02:56.5]} 9... c6 {[%clk 0:02:52.5]}
10. Rb1 {[%clk 0:02:43]} 10... exd4 {[%clk 0:02:49.2]} 11. Nxd4 {[%clk
0:02:42.4]} 11... a6 {[%clk 0:02:49.8]} 12. f3 {[%clk 0:02:36.3]} 12... Qc7
{[%clk 0:02:10]} 13. Be3 {[%clk 0:02:33]} 13... b6 {[%clk 0:02:10.4]} 14. Qd2
{[%clk 0:02:30.6]} 14... Bb7 {[%clk 0:02:10.8]} 15. Rbd1 {[%clk 0:02:29.7]}
15... Rad8 {[%clk 0:02:11.4]} 16. b3 {[%clk 0:02:28.2]} 16... b5 {[%clk
0:02:01]} 17. cxb5 {[%clk 0:02:05.6]} 17... cxb5 {[%clk 0:01:25.1]} 18. Rc1
{[%clk 0:01:51.2]} 18... Qb8 {[%clk 0:01:24.4]} 19. Bf4 {[%clk 0:01:36.8]} 19...
Ne5 {[%clk 0:01:24.3]} 20. Nd5 {[%clk 0:01:31.7]} 20... Bxd5 {[%clk 0:01:05]}
21. exd5 {[%clk 0:01:30.6]} 21... Nxd5 {[%clk 0:00:56.1]} 22. Bg3 {[%clk
0:01:07.4]} 22... Rc8 {[%clk 0:00:46.6]} 23. Nf5 {[%clk 0:00:58.5]} 23... gxf5
{[%clk 0:00:30.6]} 24. Qxd5 {[%clk 0:00:57.5]} 24... Rxc1 {[%clk 0:00:31.2]} 25.
Rxc1 {[%clk 0:00:57.4]} 25... Bh6 {[%clk 0:00:30.3]} 26. Rd1 {[%clk 0:00:45.7]}
26... Be3+ {[%clk 0:00:24.5]} 27. Kh1 {[%clk 0:00:45.8]} 27... f4 {[%clk
0:00:24.9]} 28. Be1 {[%clk 0:00:39]} 28... Re6 {[%clk 0:00:23.4]} 29. Bb4 {[%clk
0:00:35.8]} 29... Bc5 {[%clk 0:00:22.7]} 30. Bxc5 {[%clk 0:00:34]} 30... dxc5
{[%clk 0:00:22.6]} 31. Qxc5 {[%clk 0:00:34.2]} 31... Ng6 {[%clk 0:00:16.7]} 32.
a4 {[%clk 0:00:27.7]} 32... bxa4 {[%clk 0:00:11.4]} 33. Bc4 {[%clk 0:00:27.5]}
33... Rb6 {[%clk 0:00:05.1]} 34. Qg5 {[%clk 0:00:23.2]} 34... Qe5 {[%clk
0:00:03.8]} 35. Qd8+ {[%clk 0:00:15.6]} 35... Kg7 {[%clk 0:00:04]} 36. bxa4
{[%clk 0:00:15.7]} 36... Rc6 {[%clk 0:00:03.1]} 37. Bxf7 {[%clk 0:00:13.7]}
37... Kxf7 {[%clk 0:00:02.1]} 38. Rd7+ {[%clk 0:00:10.4]} 38... Ne7 {[%clk
0:00:02.3]} 39. h3 {[%clk 0:00:08.2]} 39... Re6 {[%clk 0:00:02.6]} 40. Rd1
{[%clk 0:00:07]} 40... Qe2 {[%clk 0:00:02.2]} 41. Rc1 {[%clk 0:00:06.4]} 41...
Rg6 {[%clk 0:00:02.3]} 42. Rg1 {[%clk 0:00:06]} 42... Qe5 {[%clk 0:00:02.6]} 43.
Qd3 {[%clk 0:00:05.4]} 43... a5 {[%clk 0:00:02.2]} 44. Qc4+ {[%clk 0:00:05]}
44... Kg7 {[%clk 0:00:01.9]} 45. Rd1 {[%clk 0:00:04.7]} 45... Re6 {[%clk
0:00:01.8]} 46. Rc1 {[%clk 0:00:03]} 46... Qf6 {[%clk 0:00:02.4]} 47. Rd1 {[%clk
0:00:02.9]} 47... Ng6 {[%clk 0:00:02.7]} 48. Rd7+ {[%clk 0:00:02.6]} 48... Kh6
{[%clk 0:00:03]} 49. Qc7 {[%clk 0:00:02.7]} 49... Re7 {[%clk 0:00:03.5]} 50.
Rxe7 {[%clk 0:00:02.2]} 50... Qxe7 {[%clk 0:00:04.4]} 51. Qxa5 {[%clk
0:00:02.4]} 51... Nh4 {[%clk 0:00:03.6]} 52. Qd2 {[%clk 0:00:01]} 52... Kg5
{[%clk 0:00:03.5]} 53. Qd3 {[%clk 0:00:01.2]} 53... Nf5 {[%clk 0:00:03.2]} 54.
Kh2 {[%clk 0:00:01.4]} 54... Qe1 {[%clk 0:00:03.6]} 0-1

[Event "*** Titled Tuesday Blitz"]
[Site "Chess.com"]
[Date "2020.11.03"]
[Round "8"]
[White "chessmachine14"]
[Black "vova-79"]
[Result "0-1"]
[WhiteElo "2349"]
[BlackElo "2493"]
[TimeControl "180+1"]
[EndTime "11:33:24 PST"]
[Termination "vova-79 won by checkmate"]

1. e4 {[%clk 0:03:00.9]} 1... e6 {[%clk 0:02:58]} 2. d4 {[%clk 0:03:00.3]} 2...
d5 {[%clk 0:02:56.6]} 3. Nc3 {[%clk 0:02:58.8]} 3... dxe4 {[%clk 0:02:55.9]} 4.
Nxe4 {[%clk 0:02:58.4]} 4... Nd7 {[%clk 0:02:55.9]} 5. Nf3 {[%clk 0:02:57]} 5...
Ngf6 {[%clk 0:02:55.2]} 6. Bd3 {[%clk 0:02:53.2]} 6... c5 {[%clk 0:02:54]} 7.
O-O {[%clk 0:02:50.2]} 7... Nxe4 {[%clk 0:02:52.3]} 8. Bxe4 {[%clk 0:02:49.6]}
8... Nf6 {[%clk 0:02:53.2]} 9. Bg5 {[%clk 0:02:46.7]} 9... cxd4 {[%clk
0:02:52.3]} 10. Nxd4 {[%clk 0:02:42.8]} 10... Be7 {[%clk 0:02:51.6]} 11. Bf3
{[%clk 0:02:13.1]} 11... O-O {[%clk 0:02:50.6]} 12. Nb3 {[%clk 0:02:04.8]} 12...
Qc7 {[%clk 0:02:37.9]} 13. Qe2 {[%clk 0:01:58.5]} 13... Bd7 {[%clk 0:02:35.7]}
14. Rad1 {[%clk 0:01:35.4]} 14... a6 {[%clk 0:02:25.7]} 15. Nd4 {[%clk
0:01:34.6]} 15... Rad8 {[%clk 0:02:16.8]} 16. Nf5 {[%clk 0:01:33.2]} 16... Bb4
{[%clk 0:01:26.3]} 17. Bxf6 {[%clk 0:01:00.2]} 17... gxf6 {[%clk 0:01:27.2]} 18.
Rd4 {[%clk 0:00:40.9]} 18... Bb5 {[%clk 0:01:19.4]} 19. c4 {[%clk 0:00:38.9]}
19... Rxd4 {[%clk 0:00:43.3]} 20. Nxd4 {[%clk 0:00:39.8]} 20... Qxc4 {[%clk
0:00:39.9]} 21. Qxc4 {[%clk 0:00:34.7]} 21... Bxc4 {[%clk 0:00:40.8]} 22. Rc1
{[%clk 0:00:34.9]} 22... Bxa2 {[%clk 0:00:40.5]} 23. Bxb7 {[%clk 0:00:34.9]}
23... a5 {[%clk 0:00:40.2]} 24. Nc6 {[%clk 0:00:35]} 24... Bd5 {[%clk
0:00:37.4]} 25. Nxb4 {[%clk 0:00:28.9]} 25... Bxb7 {[%clk 0:00:36.1]} 26. Rc7
{[%clk 0:00:21]} 26... Bxg2 {[%clk 0:00:31.7]} 27. Kxg2 {[%clk 0:00:19.8]} 27...
axb4 {[%clk 0:00:31.4]} 28. Rb7 {[%clk 0:00:20.4]} 28... Rd8 {[%clk 0:00:30.1]}
29. Rxb4 {[%clk 0:00:20.5]} 29... Rd2 {[%clk 0:00:29.5]} 30. Rb7 {[%clk
0:00:20.4]} 30... f5 {[%clk 0:00:29]} 31. Kf3 {[%clk 0:00:18.5]} 31... Kg7
{[%clk 0:00:28.2]} 32. Ke3 {[%clk 0:00:18.2]} 32... Rc2 {[%clk 0:00:27.9]} 33.
b4 {[%clk 0:00:18.3]} 33... Rb2 {[%clk 0:00:27.3]} 34. b5 {[%clk 0:00:17.5]}
34... e5 {[%clk 0:00:27]} 35. b6 {[%clk 0:00:13.2]} 35... Kf6 {[%clk 0:00:21.2]}
36. Rb8 {[%clk 0:00:12.9]} 36... Rb3+ {[%clk 0:00:20.7]} 37. Kd2 {[%clk
0:00:12.3]} 37... e4 {[%clk 0:00:20.1]} 38. Kc2 {[%clk 0:00:11.8]} 38... Rb5
{[%clk 0:00:19.5]} 39. Kc3 {[%clk 0:00:12]} 39... f4 {[%clk 0:00:19]} 40. b7
{[%clk 0:00:11.6]} 40... Kf5 {[%clk 0:00:17.2]} 41. Kc4 {[%clk 0:00:11.3]} 41...
Rb1 {[%clk 0:00:15.4]} 42. Kc5 {[%clk 0:00:11.6]} 42... e3 {[%clk 0:00:14.4]}
43. fxe3 {[%clk 0:00:11]} 43... fxe3 {[%clk 0:00:14.8]} 44. Kc6 {[%clk
0:00:11.4]} 44... e2 {[%clk 0:00:13.1]} 45. Re8 {[%clk 0:00:11.2]} 45... Rc1+
{[%clk 0:00:11.5]} 46. Kb6 {[%clk 0:00:10.4]} 46... e1=Q {[%clk 0:00:10]} 47.
Rxe1 {[%clk 0:00:07.6]} 47... Rxe1 {[%clk 0:00:10.9]} 48. b8=Q {[%clk
0:00:06.7]} 48... Rb1+ {[%clk 0:00:11.8]} 49. Kc7 {[%clk 0:00:07.6]} 49... Rxb8
{[%clk 0:00:10.6]} 50. Kxb8 {[%clk 0:00:08.5]} 50... Kg4 {[%clk 0:00:10.9]} 51.
Kc7 {[%clk 0:00:09]} 51... f5 {[%clk 0:00:11.3]} 52. Kd6 {[%clk 0:00:09.6]}
52... f4 {[%clk 0:00:11.5]} 53. Ke5 {[%clk 0:00:10.5]} 53... f3 {[%clk
0:00:12.3]} 54. Kd4 {[%clk 0:00:11.4]} 54... f2 {[%clk 0:00:12.7]} 55. Ke3
{[%clk 0:00:12.3]} 55... f1=Q {[%clk 0:00:13.3]} 56. Ke4 {[%clk 0:00:13]} 56...
Kh3 {[%clk 0:00:13.4]} 57. Ke5 {[%clk 0:00:13.9]} 57... Kxh2 {[%clk 0:00:14.3]}
58. Kd6 {[%clk 0:00:14.8]} 58... Kg3 {[%clk 0:00:14.8]} 59. Kc7 {[%clk
0:00:15.7]} 59... h6 {[%clk 0:00:15.5]} 60. Kb6 {[%clk 0:00:16.6]} 60... h5
{[%clk 0:00:16.4]} 61. Ka7 {[%clk 0:00:17.5]} 61... h4 {[%clk 0:00:17.3]} 62.
Ka8 {[%clk 0:00:18.4]} 62... h3 {[%clk 0:00:18.2]} 63. Kb8 {[%clk 0:00:19.3]}
63... h2 {[%clk 0:00:19.1]} 64. Ka7 {[%clk 0:00:20.2]} 64... h1=Q {[%clk
0:00:20]} 65. Kb6 {[%clk 0:00:21.1]} 65... Qc1 {[%clk 0:00:19.4]} 66. Ka5 {[%clk
0:00:22]} 66... Qh2 {[%clk 0:00:19.7]} 67. Kb6 {[%clk 0:00:22.9]} 67... Qhb2+
{[%clk 0:00:19.4]} 68. Ka7 {[%clk 0:00:23.8]} 68... Qca1# {[%clk 0:00:19.6]} 0-1

[Event "*** Titled Tuesday Blitz"]
[Site "Chess.com"]
[Date "2020.11.03"]
[Round "8"]
[White "Shubinkirill2003"]
[Black "hungrycaterpillar4"]
[Result "0-1"]
[WhiteElo "2675"]
[BlackElo "2582"]
[TimeControl "180+1"]
[EndTime "11:33:25 PST"]
[Termination "hungrycaterpillar4 won by resignation"]

1. e4 {[%clk 0:03:00.9]} 1... c5 {[%clk 0:02:59.7]} 2. Nf3 {[%clk 0:03:00.5]}
2... Nc6 {[%clk 0:02:57.5]} 3. Bb5 {[%clk 0:02:59.6]} 3... g6 {[%clk 0:02:57.5]}
4. Bxc6 {[%clk 0:02:59]} 4... dxc6 {[%clk 0:02:58.4]} 5. d3 {[%clk 0:02:59.2]}
5... Bg7 {[%clk 0:02:57.3]} 6. h3 {[%clk 0:02:59.6]} 6... Qc7 {[%clk 0:02:56.7]}
7. a4 {[%clk 0:02:59.3]} 7... a5 {[%clk 0:02:56.3]} 8. Nbd2 {[%clk 0:02:58.5]}
8... e5 {[%clk 0:02:54.6]} 9. O-O {[%clk 0:02:57.7]} 9... h6 {[%clk 0:02:52]}
10. Nc4 {[%clk 0:02:56.7]} 10... Be6 {[%clk 0:02:50]} 11. b3 {[%clk 0:02:54.1]}
11... Ne7 {[%clk 0:02:45.7]} 12. Be3 {[%clk 0:02:49.9]} 12... b6 {[%clk
0:02:45.9]} 13. Qd2 {[%clk 0:02:49.2]} 13... f5 {[%clk 0:02:36.7]} 14. Qc3
{[%clk 0:02:36.8]} 14... f4 {[%clk 0:02:23.6]} 15. Bc1 {[%clk 0:02:29]} 15... g5
{[%clk 0:01:47.1]} 16. Bb2 {[%clk 0:02:21.5]} 16... Ng6 {[%clk 0:01:46.4]} 17.
Rae1 {[%clk 0:02:02.5]} 17... O-O-O {[%clk 0:01:42.6]} 18. Ba3 {[%clk
0:01:48.8]} 18... Bf6 {[%clk 0:01:32.3]} 19. Nfd2 {[%clk 0:01:43.1]} 19... h5
{[%clk 0:01:27.9]} 20. Rb1 {[%clk 0:01:30.8]} 20... g4 {[%clk 0:01:24.1]} 21. h4
{[%clk 0:01:20.5]} 21... Be7 {[%clk 0:01:09.9]} 22. Bb2 {[%clk 0:00:47.5]} 22...
Rd4 {[%clk 0:01:08.7]} 23. Ba3 {[%clk 0:00:38.7]} 23... Nxh4 {[%clk 0:01:05.1]}
24. Nxa5 {[%clk 0:00:36]} 24... bxa5 {[%clk 0:01:04.1]} 25. Bxc5 {[%clk
0:00:36.3]} 25... Bxc5 {[%clk 0:01:01.6]} 26. Qxc5 {[%clk 0:00:37.2]} 26... Ng6
{[%clk 0:00:51.8]} 27. Nc4 {[%clk 0:00:36.1]} 27... f3 {[%clk 0:00:17.9]} 28. b4
{[%clk 0:00:23.5]} 28... Bxc4 {[%clk 0:00:15.6]} 29. dxc4 {[%clk 0:00:24.4]}
29... h4 {[%clk 0:00:09.4]} 30. bxa5 {[%clk 0:00:21.1]} 30... Nf4 {[%clk
0:00:09]} 31. Rb6 {[%clk 0:00:17.3]} 31... Ne2+ {[%clk 0:00:06.5]} 32. Kh2
{[%clk 0:00:15.2]} 32... g3+ {[%clk 0:00:06.5]} 33. Kh1 {[%clk 0:00:11.9]} 33...
fxg2+ {[%clk 0:00:07]} 34. Kxg2 {[%clk 0:00:12.1]} 34... h3+ {[%clk 0:00:05.4]}
35. Kf3 {[%clk 0:00:12.4]} 35... Rd6 {[%clk 0:00:03.6]} 36. Rfb1 {[%clk
0:00:10.5]} 36... g2 {[%clk 0:00:03.2]} 37. Rb8+ {[%clk 0:00:10]} 37... Qxb8
{[%clk 0:00:02.9]} 38. Rxb8+ {[%clk 0:00:10.9]} 38... Kxb8 {[%clk 0:00:03.8]}
39. Qxd6+ {[%clk 0:00:11]} 39... Kb7 {[%clk 0:00:03.7]} 40. Qb4+ {[%clk
0:00:10]} 40... Kc8 {[%clk 0:00:03.6]} 41. Qd6 {[%clk 0:00:06.7]} 41... g1=Q
{[%clk 0:00:03.9]} 42. Qxc6+ {[%clk 0:00:06.9]} 42... Kd8 {[%clk 0:00:04.6]} 43.
Qd6+ {[%clk 0:00:07]} 43... Ke8 {[%clk 0:00:05.3]} 44. Qe6+ {[%clk 0:00:07.3]}
44... Kf8 {[%clk 0:00:05.7]} 45. Qf6+ {[%clk 0:00:07.5]} 45... Kg8 {[%clk
0:00:06.4]} 46. Qe6+ {[%clk 0:00:07.8]} 46... Kh7 {[%clk 0:00:06.2]} 47. Qf5+
{[%clk 0:00:06.6]} 47... Qg6 {[%clk 0:00:05.6]} 48. Qxh3+ {[%clk 0:00:06.7]}
48... Kg7 {[%clk 0:00:05.3]} 49. Qd7+ {[%clk 0:00:06.6]} 49... Qf7+ {[%clk
0:00:05.8]} 50. Qxf7+ {[%clk 0:00:06.6]} 50... Kxf7 {[%clk 0:00:06.7]} 51. Kxe2
{[%clk 0:00:07.5]} 51... Ra8 {[%clk 0:00:07.1]} 52. Kd3 {[%clk 0:00:07.8]} 52...
Rxa5 {[%clk 0:00:07.7]} 53. Kc3 {[%clk 0:00:05.5]} 53... Rxa4 {[%clk 0:00:08.1]}
54. Kb3 {[%clk 0:00:05.9]} 54... Ra1 {[%clk 0:00:06.5]} 55. Kb4 {[%clk
0:00:06.1]} 55... Rf1 {[%clk 0:00:06.6]} 56. Kc5 {[%clk 0:00:05.6]} 56... Ke6
{[%clk 0:00:06.1]} 57. Kb6 {[%clk 0:00:05]} 57... Rxf2 {[%clk 0:00:06.5]} 58. c5
{[%clk 0:00:05.6]} 58... Rxc2 {[%clk 0:00:06.7]} 59. c6 {[%clk 0:00:06]} 59...
Kd6 {[%clk 0:00:07]} 0-1

[Event "*** Titled Tuesday Blitz"]
[Site "Chess.com"]
[Date "2020.11.03"]
[Round "8"]
[White "tptagain"]
[Black "ShimanovAlex"]
[Result "0-1"]
[WhiteElo "2937"]
[BlackElo "2825"]
[TimeControl "180+1"]
[EndTime "11:33:28 PST"]
[Termination "ShimanovAlex won by checkmate"]

1. Nf3 {[%clk 0:03:00.9]} 1... d5 {[%clk 0:02:57.7]} 2. c4 {[%clk 0:03:00.9]}
2... c6 {[%clk 0:02:57.6]} 3. e3 {[%clk 0:02:57.8]} 3... Nf6 {[%clk 0:02:57.7]}
4. Nc3 {[%clk 0:02:58.1]} 4... a6 {[%clk 0:02:57.7]} 5. d4 {[%clk 0:02:52.9]}
5... b5 {[%clk 0:02:57.3]} 6. b3 {[%clk 0:02:52.3]} 6... Bf5 {[%clk 0:02:56.1]}
7. a4 {[%clk 0:02:41.9]} 7... b4 {[%clk 0:02:52]} 8. Nb1 {[%clk 0:02:40.9]} 8...
e6 {[%clk 0:02:42.2]} 9. Nbd2 {[%clk 0:02:39.8]} 9... Bd6 {[%clk 0:02:37]} 10.
Bb2 {[%clk 0:02:39.3]} 10... a5 {[%clk 0:02:28.8]} 11. Be2 {[%clk 0:02:34.1]}
11... Nbd7 {[%clk 0:02:26.7]} 12. O-O {[%clk 0:02:30]} 12... Qb8 {[%clk
0:02:23.2]} 13. h3 {[%clk 0:02:22.9]} 13... h6 {[%clk 0:02:23.1]} 14. Ne1 {[%clk
0:02:21]} 14... O-O {[%clk 0:02:16.7]} 15. Bd3 {[%clk 0:02:21]} 15... Ne4 {[%clk
0:02:04.3]} 16. Qc2 {[%clk 0:02:14]} 16... Ndf6 {[%clk 0:01:50.7]} 17. Nxe4
{[%clk 0:01:59.1]} 17... Bxe4 {[%clk 0:01:31.5]} 18. Bxe4 {[%clk 0:01:47.6]}
18... Nxe4 {[%clk 0:01:31.3]} 19. Nd3 {[%clk 0:01:47.8]} 19... f5 {[%clk
0:01:18.6]} 20. Ne5 {[%clk 0:01:42.3]} 20... Bxe5 {[%clk 0:01:15.2]} 21. dxe5
{[%clk 0:01:42.3]} 21... Qe8 {[%clk 0:01:14.2]} 22. f3 {[%clk 0:01:38.6]} 22...
Ng3 {[%clk 0:01:11.3]} 23. Rf2 {[%clk 0:01:31.8]} 23... Rc8 {[%clk 0:01:06.9]}
24. Kh2 {[%clk 0:01:29.5]} 24... Qg6 {[%clk 0:00:52.9]} 25. Rc1 {[%clk
0:01:24.8]} 25... Kh7 {[%clk 0:00:50.8]} 26. Bd4 {[%clk 0:01:13.9]} 26... c5
{[%clk 0:00:44.7]} 27. Bb2 {[%clk 0:01:13.6]} 27... h5 {[%clk 0:00:36.2]} 28. h4
{[%clk 0:01:07.6]} 28... f4 {[%clk 0:00:28.9]} 29. Qxg6+ {[%clk 0:01:03.4]}
29... Kxg6 {[%clk 0:00:29.8]} 30. exf4 {[%clk 0:01:00.4]} 30... Nf5 {[%clk
0:00:30.1]} 31. g4 {[%clk 0:00:50.2]} 31... hxg4 {[%clk 0:00:28.6]} 32. fxg4
{[%clk 0:00:51.1]} 32... Ne3 {[%clk 0:00:24.8]} 33. Kg3 {[%clk 0:00:48.5]} 33...
dxc4 {[%clk 0:00:24.4]} 34. bxc4 {[%clk 0:00:47.9]} 34... Rcd8 {[%clk
0:00:24.9]} 35. Rf3 {[%clk 0:00:45.7]} 35... Nd1 {[%clk 0:00:24]} 36. Rc2 {[%clk
0:00:39.2]} 36... Nxb2 {[%clk 0:00:11.9]} 37. Rxb2 {[%clk 0:00:38.4]} 37... Rd4
{[%clk 0:00:12.8]} 38. Rc2 {[%clk 0:00:32.4]} 38... Kh6 {[%clk 0:00:13]} 39. f5
{[%clk 0:00:29.9]} 39... exf5 {[%clk 0:00:10.5]} 40. gxf5 {[%clk 0:00:30.8]}
40... Re8 {[%clk 0:00:11]} 41. e6 {[%clk 0:00:29.5]} 41... Kh5 {[%clk
0:00:11.1]} 42. Re2 {[%clk 0:00:21.9]} 42... Rg4+ {[%clk 0:00:10.3]} 43. Kf2
{[%clk 0:00:21.8]} 43... Rxh4 {[%clk 0:00:10.3]} 44. Re5 {[%clk 0:00:22.1]}
44... Kg4 {[%clk 0:00:08]} 45. f6 {[%clk 0:00:19.8]} 45... gxf6 {[%clk
0:00:06.2]} 46. Rxf6 {[%clk 0:00:20.1]} 46... Rh2+ {[%clk 0:00:05.9]} 47. Ke3
{[%clk 0:00:20.2]} 47... Rh3+ {[%clk 0:00:06.1]} 48. Ke4 {[%clk 0:00:20.4]}
48... Rc3 {[%clk 0:00:05]} 49. Kd5 {[%clk 0:00:20.3]} 49... b3 {[%clk
0:00:04.1]} 50. Rf2 {[%clk 0:00:19.3]} 50... Rc2 {[%clk 0:00:04.1]} 51. Rxc2
{[%clk 0:00:19.5]} 51... bxc2 {[%clk 0:00:05]} 52. Re1 {[%clk 0:00:19.6]} 52...
Rd8+ {[%clk 0:00:05.3]} 53. Kxc5 {[%clk 0:00:19.4]} 53... Rd1 {[%clk 0:00:06.2]}
54. Re4+ {[%clk 0:00:16.3]} 54... Kf5 {[%clk 0:00:05.4]} 55. e7 {[%clk
0:00:17.2]} 55... c1=Q {[%clk 0:00:05.8]} 56. e8=Q {[%clk 0:00:17.6]} 56... Qa3+
{[%clk 0:00:06.5]} 57. Kb5 {[%clk 0:00:12.1]} 57... Qb4+ {[%clk 0:00:06]} 58.
Kc6 {[%clk 0:00:09.3]} 58... Rd6+ {[%clk 0:00:05.4]} 59. Kc7 {[%clk 0:00:09.6]}
59... Qb6+ {[%clk 0:00:05.1]} 60. Kc8 {[%clk 0:00:10.2]} 60... Rc6+ {[%clk
0:00:05.7]} 61. Kd7 {[%clk 0:00:09.1]} 61... Rc7+ {[%clk 0:00:05.8]} 62. Kd8
{[%clk 0:00:09.3]} 62... Qb8# {[%clk 0:00:01.7]} 0-1